bitfinex/quotes_ETHUSD_20250622
["timestamp","ask_amount","ask_price","bid_price","bid_amount"]
[1750555019435,9.865,2289.6,2289.5,0.2256887]
[1750555020323,10.483,2290.4,2290.2,4.36643087]
[1750555020558,9.90787209,2290.3,2290.2,4.36643087]
[1750555020762,9.864,2290.3,2290.2,4.36643087]
[1750555020939,10.483,2290.4,2290.3,4.36624023]
[1750555021282,2.197,2290.6,2290.5,14.36585898]
[1750555021440,9.87,2290.9,2290.8,4.36528723]
[1750555022432,9.87,2290.9,2290.7,4.36547196]
[1750555022433,9.87,2290.9,2290.7,4.36533454]
[1750555022880,9.87,2290.9,2290.3,0.806]
[1750555023154,0.04387209,2290.8,2290.7,4.3654778]
[1750555023730,9.868,2290.8,2290.7,4.3654778]
[1750555023925,9.868,2290.8,2290.6,4.36562601]
[1750555024268,30.0,2290.5,2289.8,5.17314503]
[1750555024471,2.197,2290.4,2290.3,4.36624023]
[1750555024679,9.867,2290.4,2290.3,4.36624023]
[1750555024839,9.867,2290.4,2290.2,4.36637093]
[1750555025030,0.04387209,2290.3,2289.9,4.36696252]
[1750555025274,0.04387209,2290.3,2290.1,4.36645963]
[1750555025429,9.865,2290.2,2290.1,4.3664652]
[1750555025625,2.197,2290.8,2290.5,0.7843]
[1750555026048,2.24087209,2290.8,2290.5,5.1499921]
[1750555026444,2.24087209,2290.8,2290.2,0.7843]
[1750555026646,2.197,2290.8,2290.7,4.3654778]
[1750555026956,10.0,2291.1,2290.7,4.3654778]
[1750555027175,14.0805,2291.1,2290.3,0.04365338]
[1750555027375,9.91387209,2291.0,2290.6,4.36560499]
[1750555027528,4.91518981,2290.9,2290.3,4.36624023]
[1750555027728,0.04387209,2290.8,2290.2,0.7843]
[1750555028154,9.868,2290.7,2290.6,4.36566838]
[1750555028326,9.868,2290.7,2290.2,5.15072197]
[1750555028327,2.197,2290.7,2290.2,5.15072197]
[1750555028546,2.197,2290.6,2290.5,4.36584209]
[1750555028862,2.197,2290.6,2290.5,4.36585898]
[1750555029244,2.197,2290.6,2290.0,13.69056724]
[1750555029245,0.55,2290.3,2289.1,0.7606]
[1750555029464,1.3467,2289.9,2289.1,0.7606]
[1750555029764,10.55,2289.7,2289.3,4.3681454]
[1750555029943,0.04387209,2289.6,2289.3,4.36807259]
[1750555031168,0.7967,2289.9,2289.6,4.36757512]
[1750555031478,9.918,2289.8,2289.6,4.36750102]
[1750555031971,9.918,2289.8,2289.5,0.2256887]
[1750555032176,0.04387209,2289.7,2289.5,0.2256887]
[1750555032408,45.71657512,2289.6,2289.5,0.2256887]
[1750555032546,15.71657512,2289.6,2289.5,0.2256887]
[1750555032745,18.71675457,2289.6,2289.5,0.2256887]
[1750555033170,28.64175457,2289.6,2289.5,0.2256887]
[1750555033374,24.27417945,2289.6,2289.5,0.2256887]
[1750555033684,9.921,2289.6,2289.5,0.2256887]
[1750555034177,9.921,2289.6,2289.5,4.59345458]
[1750555035177,11.2979,2290.2,2289.7,4.36728392]
[1750555035348,11.2979,2290.2,2289.5,0.2256887]
[1750555035349,19.96887209,2290.1,2289.8,4.36712256]
[1750555035554,19.925,2290.1,2289.8,4.36712256]
[1750555035847,19.925,2290.1,2289.7,4.3673203]
[1750555036174,19.925,2290.1,2289.5,0.2256887]
[1750555036175,0.55,2289.8,2289.5,0.2256887]
[1750555036365,31.3609,2289.6,2289.5,0.2256887]
[1750555036569,0.8109,2289.6,2289.5,0.2256887]
[1750555036873,9.923,2289.6,2289.5,0.2256887]
[1750555037672,12.04839,2289.6,2289.5,0.2256887]
[1750555037890,9.921,2289.6,2289.5,0.2256887]
[1750555038452,3.12229,2290.1,2289.5,0.9934887]
[1750555038658,9.96387209,2290.0,2289.5,0.9934887]
[1750555038864,9.92,2290.0,2289.8,4.36715627]
[1750555039048,9.92,2290.0,2289.8,4.36719364]
[1750555039476,9.92,2290.0,2289.9,4.36700292]
[1750555039948,12.687,2290.2,2290.1,4.36662154]
[1750555040562,10.487,2290.2,2290.1,4.36662154]
[1750555043407,2.2,2290.3,2290.2,4.36643087]
[1750555044097,2.2,2290.3,2290.1,4.36643325]
[1750555044265,7.712,2290.2,2289.7,0.86326592]
[1750555044474,7.712,2290.2,2290.0,4.36668951]
[1750555045004,7.712,2290.2,2289.9,4.36692218]
[1750555045301,7.712,2290.2,2290.1,4.36662154]
[1750555045655,7.712,2290.2,2290.0,4.366733]
[1750555046254,7.712,2290.2,2290.1,4.36662154]
[1750555046755,7.712,2290.2,2290.0,4.36672974]
[1750555047157,7.712,2290.2,2289.8,4.36719364]
[1750555047352,7.712,2290.2,2289.4,4.36781677]
[1750555047353,30.55,2290.1,2289.5,0.2256887]
[1750555047554,0.79627209,2290.0,2289.6,4.36756556]
[1750555047755,7.696,2289.9,2289.5,4.59332248]
[1750555047987,2.2,2289.8,2289.6,4.36757512]
[1750555048189,2.2,2289.8,2289.7,4.36738437]
[1750555048607,2.2,2289.8,2289.6,4.36749788]
[1750555049302,2.2,2289.8,2289.5,4.59338518]
[1750555049540,13.30871209,2289.8,2289.5,0.2256887]
[1750555049662,10.55,2289.7,2289.5,0.2256887]
[1750555049859,7.73187209,2289.6,2289.5,0.2256887]
[1750555050412,9.09757209,2289.6,2289.5,0.2256887]
[1750555050590,10.72667252,2289.6,2289.5,0.2256887]
[1750555050786,55.09424764,2289.6,2289.5,0.2256887]
[1750555051591,55.09924764,2289.6,2289.5,0.2256887]
[1750555051777,55.32112785,2289.6,2289.5,0.2256887]
[1750555051985,55.09924764,2289.6,2289.5,0.2256887]
[1750555054472,20.73167252,2289.6,2289.5,0.2256887]
[1750555054899,25.09924764,2289.6,2289.5,0.2256887]
[1750555055098,50.73167252,2289.6,2289.5,0.2256887]
[1750555055826,21.2357,2289.6,2289.5,0.2256887]
[1750555056113,20.42,2289.6,2289.5,0.2256887]
[1750555056576,10.49,2290.0,2289.5,0.2256887]
[1750555056905,9.874,2289.9,2289.6,0.7779]
[1750555057104,19.874,2289.9,2289.7,4.3673329]
[1750555057312,9.874,2289.9,2289.6,4.36754769]
[1750555057518,9.874,2289.9,2289.5,0.2256887]
[1750555058006,0.04387209,2289.8,2289.5,0.2256887]
[1750555058207,7.669,2289.7,2289.5,0.2256887]
[1750555058803,7.669,2289.7,2289.5,4.59333205]
[1750555059182,7.669,2289.7,2289.5,0.2256887]
[1750555060616,7.669,2289.7,2289.5,4.59345417]
[1750555060819,7.669,2289.7,2289.6,4.36757512]
[1750555061004,7.669,2289.7,2289.5,4.5934232]
[1750555062114,10.0,2289.7,2289.6,4.36757512]
[1750555062293,19.809,2289.7,2289.6,4.36757512]
[1750555063006,19.809,2289.7,2289.5,0.2256887]
[1750555063815,11.40557209,2289.6,2289.5,0.2256887]
[1750555064115,11.3617,2289.6,2289.5,0.2256887]
[1750555064293,41.3617,2289.6,2289.5,0.2256887]
[1750555064493,45.72927512,2289.6,2289.5,0.2256887]
[1750555065614,55.53827512,2289.6,2289.5,0.2256887]
[1750555065828,59.93262399,2289.6,2289.5,0.2256887]
[1750555067734,59.93262399,2289.6,2289.5,0.04658719]
[1750555068323,59.93262399,2289.6,2288.4,5.15042022]
[1750555068324,10.55,2289.0,2288.5,0.7807]
[1750555068494,10.0,2288.8,2288.5,0.7807]
[1750555068701,7.652,2288.7,2288.5,5.15030704]
[1750555069522,7.652,2288.7,2288.6,4.36948352]
[1750555070018,10.0,2288.8,2288.7,4.36929261]
[1750555070196,10.492,2288.9,2288.8,4.36910171]
[1750555070390,20.301,2288.9,2288.8,4.36910171]
[1750555070789,22.3311,2288.9,2288.4,4.36978462]
[1750555070983,22.3311,2288.9,2287.5,4.3714523]
[1750555070984,10.0,2288.6,2287.7,0.7578]
[1750555071234,10.0,2288.6,2287.3,0.08144694]
[1750555071235,14.37045219,2288.1,2287.3,0.08144694]
[1750555071420,10.0,2287.8,2287.3,0.08144694]
[1750555071589,10.493,2287.7,2287.6,4.3713936]
[1750555071790,20.303,2287.7,2287.5,4.37158096]
[1750555071989,20.303,2287.7,2287.6,4.3713936]
[1750555072204,20.303,2287.7,2287.5,4.37154644]
[1750555072396,20.303,2287.7,2287.6,4.3713936]
[1750555072589,10.493,2287.7,2287.6,4.3713936]
[1750555072823,20.303,2287.7,2287.6,4.3713936]
[1750555073231,10.493,2287.7,2287.6,5.2456876]
[1750555073435,30.0,2289.7,2288.2,0.7578]
[1750555073589,0.7887,2289.8,2287.6,8.527294]
[1750555073590,2.28217196,2289.6,2289.3,4.36810426]
[1750555073789,7.719,2289.5,2289.1,4.36837456]
[1750555074109,30.8128,2289.3,2289.0,4.36868831]
[1750555074424,10.8475393,2289.2,2289.0,4.36868831]
[1750555074611,2.157,2289.1,2289.0,4.36868831]
[1750555074819,2.20087209,2289.1,2288.5,0.7578]
[1750555075032,2.20087209,2289.1,2288.7,4.36922695]
[1750555075033,7.72,2289.0,2288.7,4.36922695]
[1750555075320,10.0,2288.9,2287.6,5.24558838]
[1750555075525,10.0,2288.7,2288.5,4.36960977]
[1750555075723,10.0,2288.5,2288.4,4.36980785]
[1750555075904,7.724,2288.6,2288.5,4.36961159]
[1750555076107,9.881,2288.6,2288.4,4.36979582]
[1750555076604,9.881,2288.6,2288.4,4.36980603]
[1750555076804,9.881,2288.6,2288.0,4.37062937]
[1750555077031,0.8128,2288.8,2288.5,4.36967445]
[1750555077337,19.92862078,2288.7,2288.6,4.36948352]
[1750555077531,19.874,2288.7,2288.6,4.36948352]
[1750555077698,19.874,2288.7,2288.5,4.36960582]
[1750555077899,19.874,2288.7,2288.4,4.36985307]
[1750555078232,19.874,2288.7,2288.6,4.36948352]
[1750555078392,19.874,2288.7,2288.4,4.36985307]
[1750555078598,19.874,2288.7,2288.5,4.36967445]
[1750555078816,0.05462077,2288.6,2288.4,4.36980644]
[1750555078992,7.71,2288.5,2287.8,0.7588]
[1750555079200,7.71,2288.5,2288.4,4.3698654]
[1750555080298,30.0,2289.0,2288.4,0.7588]
[1750555080528,30.0,2289.0,2288.6,4.36945388]
[1750555080529,9.92561856,2288.9,2288.6,4.36945388]
[1750555080853,9.871,2288.9,2288.6,4.36943521]
[1750555080995,9.871,2288.9,2288.8,4.36910171]
[1750555081718,2.157,2288.9,2288.8,4.36910171]
[1750555082122,9.863,2288.9,2288.2,0.7588]
[1750555082310,9.863,2288.9,2288.8,4.36910171]
[1750555083608,10.495,2289.1,2289.0,4.36871996]
[1750555083810,12.652,2289.1,2289.0,4.36871996]
[1750555084024,10.495,2289.1,2289.0,7.72365854]
[1750555084210,10.495,2289.1,2289.0,8.59742054]
[1750555084418,2.157,2289.5,2289.4,4.36778409]
[1750555084620,38.5268,2289.5,2288.7,0.7588]
[1750555084812,30.0,2289.1,2288.4,0.7588]
[1750555085135,13.932,2289.0,2288.9,4.36891083]
[1750555085323,9.877,2289.0,2288.7,4.36927614]
[1750555085632,0.05461172,2288.9,2288.6,4.36945559]
[1750555085841,7.72,2288.8,2288.7,4.36915993]
[1750555086011,7.72,2288.8,2288.6,4.36941762]
[1750555086355,7.72,2288.8,2288.6,4.36942455]
[1750555086845,0.05461578,2288.7,2288.5,4.36966614]
[1750555087028,7.717,2288.6,2288.5,4.36967445]
[1750555087234,7.717,2288.6,2288.4,4.36983343]
[1750555087535,2.157,2288.5,2288.2,4.37024735]
[1750555087749,2.157,2288.5,2288.4,4.3698654]
[1750555089264,2.157,2288.5,2288.3,4.36999518]
[1750555089538,2.157,2288.5,2288.4,4.3698654]
[1750555091649,2.2116209,2288.5,2288.1,0.7588]
[1750555091859,2.2116209,2288.5,2288.3,4.3698936]
[1750555092073,0.0546209,2288.5,2288.4,4.3698654]
[1750555092230,2.175,2288.5,2288.1,5.12918519]
[1750555092432,2.175,2288.5,2288.2,4.37024735]
[1750555092736,2.175,2288.5,2288.3,4.37004031]
[1750555092925,2.175,2288.5,2288.2,4.37016786]
[1750555093161,2.175,2288.5,2288.1,5.12918519]
[1750555093162,7.73562293,2288.4,2288.0,4.37051305]
[1750555093359,7.73562293,2288.4,2287.3,0.08144694]
[1750555093360,40.8128,2288.2,2287.3,0.08144694]
[1750555093528,30.0,2288.0,2287.4,4.3715951]
[1750555093736,2.22964083,2287.9,2287.7,4.3712025]
[1750555093936,7.687,2287.8,2287.7,4.3712025]
[1750555094138,7.687,2287.8,2287.3,4.45336201]
[1750555094139,0.55,2287.6,2287.3,0.08144694]
[1750555094340,7.73865275,2287.5,2287.4,4.37177581]
[1750555094657,10.496,2287.8,2287.7,4.37120251]
[1750555096245,2.175,2287.9,2287.8,4.37101145]
[1750555096776,10.6888,2287.9,2287.3,0.08144694]
[1750555096981,0.05464156,2287.8,2287.4,4.37174449]
[1750555097282,0.05464156,2287.8,2287.3,0.08144694]
[1750555097464,2.175,2287.7,2287.4,5.13057581]
[1750555097666,2.175,2287.7,2287.4,0.7588]
[1750555097849,40.05464202,2287.6,2287.3,0.08144694]
[1750555098068,10.0,2287.4,2287.3,0.08144694]
[1750555098248,44.92177581,2287.4,2287.3,0.08144694]
[1750555098456,45.73457581,2287.4,2287.3,0.08144694]
[1750555098649,45.95349652,2287.4,2287.3,0.08144694]
[1750555098895,41.58172071,2287.4,2287.3,0.08144694]
[1750555099095,59.53194922,2287.4,2287.3,0.08144694]
[1750555099850,60.18765092,2287.4,2287.3,0.08144694]
[1750555100152,59.97478592,2287.4,2287.3,0.08144694]
[1750555100782,55.60301011,2287.4,2287.3,0.08144694]
[1750555100949,59.97478592,2287.4,2287.3,0.08144694]
[1750555101165,14.92196694,2287.3,2287.2,0.00562925]
[1750555101356,46.81090923,2287.3,2287.2,0.00562925]
[1750555103283,42.43894229,2287.3,2287.2,0.00562925]
[1750555103663,21.75294229,2287.3,2287.2,0.00562925]
[1750555103868,2.176,2287.3,2287.2,4.37778734]
[1750555104077,9.869,2287.3,2287.2,0.00562925]
[1750555104488,41.2199,2287.3,2287.2,0.00562925]
[1750555104682,55.59186694,2287.3,2287.2,0.00562925]
[1750555104887,59.98621581,2287.3,2287.2,0.00562925]
[1750555105283,55.61424887,2287.3,2287.2,0.00562925]
[1750555105560,30.55,2286.6,2285.8,0.8179]
[1750555105764,19.92567812,2286.5,2285.8,0.8179]
[1750555105976,30.0,2286.4,2286.1,4.37426184]
[1750555106191,30.0,2286.4,2285.8,0.8179]
[1750555106192,40.0,2286.2,2285.8,4.37482254]
[1750555106383,7.716,2286.1,2286.0,4.70018399]
[1750555106800,7.716,2286.1,2286.0,0.32573296]
[1750555107205,17.77067974,2286.1,2286.0,0.32573296]
[1750555107418,10.0,2286.3,2286.0,0.32573296]
[1750555107592,9.89,2286.2,2286.0,0.32573296]
[1750555107774,9.89,2286.2,2286.0,5.51801736]
[1750555107975,9.89,2286.2,2286.1,4.37426184]
[1750555109295,9.899,2286.2,2286.0,1.14363296]
[1750555109602,9.899,2286.2,2286.1,4.37422499]
[1750555110572,10.502,2286.4,2286.1,7.72916357]
[1750555110776,10.502,2286.4,2286.3,4.37387919]
[1750555110968,20.39,2286.4,2286.3,4.37387919]
[1750555111585,10.502,2286.4,2286.3,4.37387919]
[1750555111774,12.679,2286.4,2286.3,4.37387919]
[1750555111989,10.502,2286.4,2286.3,4.37387919]
[1750555112197,12.679,2286.4,2286.3,4.37387919]
[1750555112806,10.502,2286.4,2286.3,4.37387919]
[1750555113027,12.679,2286.4,2286.3,4.37387919]
[1750555113183,10.502,2286.4,2286.3,4.37387919]
[1750555117314,10.502,2286.4,2286.1,4.37413106]
[1750555117521,7.693,2286.3,2286.2,4.37407051]
[1750555118095,7.74767322,2286.3,2286.0,1.14363296]
[1750555118430,10.502,2286.4,2286.3,4.37387919]
[1750555118585,20.357,2286.4,2286.1,4.37413433]
[1750555118785,0.05467645,2286.3,2286.0,4.70012671]
[1750555119010,7.676,2286.2,2286.0,0.32573296]
[1750555119221,0.05467645,2286.3,2286.0,0.32573296]
[1750555119222,0.782,2286.3,2286.0,4.70018615]
[1750555119423,0.782,2286.3,2286.0,0.32573296]
[1750555119424,2.177,2286.1,2286.0,0.32573296]
[1750555119619,2.177,2286.1,2286.0,4.70018615]
[1750555119810,2.177,2286.1,2286.0,0.32573296]
[1750555120009,2.177,2286.1,2286.0,4.70018615]
[1750555120606,2.177,2286.1,2286.0,0.32573296]
[1750555120921,4.21677765,2286.1,2286.0,0.32573296]
[1750555121425,10.0,2286.3,2286.0,4.70018615]
[1750555121605,2.177,2286.1,2286.0,4.70018615]
[1750555121922,9.86,2286.1,2286.0,4.70018615]
[1750555122224,10.502,2286.4,2286.3,4.37387919]
[1750555122400,30.354,2286.4,2286.0,4.70013188]
[1750555122590,33.4676,2286.4,2286.1,4.37414664]
[1750555122899,9.85,2286.3,2286.2,4.37407051]
[1750555123824,9.85,2286.3,2286.0,0.32573296]
[1750555124028,0.05467898,2286.2,2286.0,0.32573296]
[1750555124324,7.687,2286.1,2286.0,0.32573296]
[1750555125534,37.687,2286.1,2286.0,0.32573296]
[1750555125718,42.08134887,2286.1,2286.0,0.32573296]
[1750555125926,12.08134887,2286.1,2286.0,0.32573296]
[1750555126132,7.687,2286.1,2286.0,0.32573296]
[1750555126307,17.687,2286.1,2286.0,0.32573296]
[1750555126508,8.237,2286.1,2286.0,0.32573296]
[1750555126814,7.687,2286.1,2286.0,0.32573296]
[1750555127013,7.74168621,2286.1,2286.0,0.32573296]
[1750555127227,9.29742406,2286.1,2286.0,0.32573296]
[1750555127412,9.24273785,2286.1,2286.0,0.32573296]
[1750555127790,19.24273785,2286.1,2286.0,0.32573296]
[1750555128623,54.16699969,2286.1,2286.0,0.32573296]
[1750555129437,49.79273785,2286.1,2286.0,0.32573296]
[1750555129734,49.24273785,2286.1,2286.0,0.32573296]
[1750555129950,9.24273785,2286.1,2286.0,0.32573296]
[1750555130443,9.841,2286.1,2286.0,4.70018615]
[1750555130615,9.841,2286.1,2286.0,0.32573296]
[1750555132020,10.44311082,2286.3,2286.0,0.32573296]
[1750555132234,9.842,2286.2,2286.0,0.32573296]
[1750555132439,9.842,2286.2,2286.1,4.37426184]
[1750555132768,10.0,2286.3,2286.2,4.37407051]
[1750555132955,19.842,2286.3,2286.2,4.37407051]
[1750555133251,19.842,2286.3,2286.0,0.32573296]
[1750555133403,0.05467879,2286.2,2286.0,0.32573296]
[1750555133606,7.67,2286.1,2286.0,4.70016834]
[1750555133821,7.671,2286.1,2286.0,4.70016834]
[1750555135345,7.671,2286.1,2286.0,4.70018615]
[1750555136754,10.502,2286.4,2286.2,5.20617051]
[1750555136926,10.502,2286.4,2286.3,4.89449624]
[1750555137250,10.502,2286.4,2286.3,4.37387919]
[1750555137809,10.502,2286.4,2286.2,4.37403177]
[1750555138019,7.72467549,2286.3,2286.0,0.32573296]
[1750555138509,7.72467549,2286.3,2286.1,4.37413722]
[1750555138713,7.72467549,2286.3,2286.0,4.70016898]
[1750555139119,7.72467549,2286.3,2286.1,4.37426184]
[1750555139332,9.56943755,2286.3,2286.2,4.37407051]
[1750555139620,7.67,2286.3,2286.2,4.37407051]
[1750555139822,7.72467548,2286.3,2286.2,4.37407051]
[1750555140650,7.72467548,2286.3,2286.0,4.70016042]
[1750555141819,40.0,2286.2,2286.0,0.32573296]
[1750555142033,9.8956823,2286.1,2286.0,4.70018615]
[1750555142231,9.841,2286.1,2286.0,4.70018615]
[1750555143154,9.839,2286.1,2286.0,8.05496507]
[1750555144730,2.17,2286.1,2286.0,8.05496507]
[1750555144931,9.839,2286.1,2286.0,8.05496507]
[1750555146974,10.502,2286.4,2286.3,4.37387919]
[1750555147267,21.3912,2286.4,2286.3,4.37387919]
[1750555147631,12.672,2286.4,2286.3,4.37387919]
[1750555149060,20.34,2286.4,2286.3,4.37387919]
[1750555150634,10.502,2286.4,2286.3,7.72881777]
[1750555150935,10.508,2287.3,2286.7,0.8247]
[1750555151142,10.94345879,2287.2,2286.7,0.8247]
[1750555151342,10.8888,2287.2,2286.7,5.19778348]
[1750555151655,10.05465888,2287.1,2286.9,4.37271415]
[1750555151854,11.0508,2287.2,2286.9,4.37271415]
[1750555152064,2.17,2287.1,2287.0,4.37253521]
[1750555152235,9.837,2287.1,2287.0,4.37253521]
[1750555152761,9.837,2287.1,2286.9,4.37266383]
[1750555152925,10.508,2287.3,2287.2,4.37215809]
[1750555153125,12.67,2287.3,2287.2,4.37215809]
[1750555153361,0.7838,2287.8,2287.6,4.37135879]
[1750555153558,11.2908,2288.1,2288.0,4.37062937]
[1750555153855,15.279,2288.1,2288.0,4.37062937]
[1750555154059,22.946,2288.1,2288.0,4.37062937]
[1750555154368,20.336,2288.1,2288.0,4.37062937]
[1750555154866,12.668,2288.1,2288.0,5.19532937]
[1750555155069,0.7838,2287.8,2287.0,0.8247]
[1750555155241,0.7838,2287.4,2286.7,5.19779616]
[1750555155446,30.0,2287.2,2286.9,4.3727254]
[1750555155755,30.0,2287.2,2286.7,5.19779616]
[1750555155756,0.7838,2287.4,2287.1,4.37219412]
[1750555155958,0.05465522,2287.3,2287.0,4.37252836]
[1750555156172,9.88065522,2287.3,2287.1,4.37229707]
[1750555156371,9.826,2287.3,2287.1,4.37234926]
[1750555157347,10.88698,2287.3,2287.0,4.37249683]
[1750555157554,0.05465165,2287.2,2287.0,4.37249683]
[1750555157747,7.665,2287.1,2287.0,4.37249683]
[1750555160643,7.665,2287.1,2286.9,4.37267432]
[1750555160976,10.0,2287.0,2286.6,7.72807426]
[1750555161139,12.20918955,2287.0,2286.6,4.37329097]
[1750555161334,40.0,2286.8,2286.1,0.7755]
[1750555161539,0.7605,2286.9,2286.3,4.37376239]
[1750555161540,9.87866887,2286.7,2286.3,4.37376239]
[1750555161764,0.05467348,2286.6,2286.3,4.37376239]
[1750555162573,4.42810089,2286.6,2286.1,0.7755]
[1750555162777,10.7605,2286.4,2286.0,0.32573296]
[1750555162944,7.71668149,2286.3,2286.0,0.32573296]
[1750555163140,2.161,2286.2,2286.0,0.32573296]
[1750555163472,2.21568189,2286.2,2286.0,0.32573296]
[1750555163665,2.21568189,2286.2,2286.1,4.37426184]
[1750555163666,2.161,2286.2,2286.1,4.37426184]
[1750555163836,0.7605,2286.7,2286.0,0.32573296]
[1750555164048,9.823,2286.6,2286.3,4.37375187]
[1750555164272,9.823,2286.6,2286.1,0.7755]
[1750555164573,9.823,2286.6,2286.2,4.37389908]
[1750555164755,9.823,2286.6,2286.3,4.37384006]
[1750555164944,9.823,2286.6,2286.2,0.02177683]
[1750555165145,9.823,2286.6,2286.4,4.37358284]
[1750555165660,9.823,2286.6,2286.5,4.37349661]
[1750555166269,9.823,2286.6,2286.3,4.37375464]
[1750555166446,9.823,2286.6,2286.1,4.37426184]
[1750555166786,10.88797,2286.6,2286.1,4.37420008]
[1750555166991,0.05466929,2286.5,2286.1,4.37420008]
[1750555167289,0.05466929,2286.5,2286.0,0.32573296]
[1750555167290,10.8267,2286.3,2286.0,0.32573296]
[1750555167452,7.71667462,2286.2,2286.0,0.32573296]
[1750555167654,2.161,2286.1,2286.0,0.32573296]
[1750555167854,0.8267,2286.7,2286.4,4.37354328]
[1750555168100,30.0,2286.5,2286.0,0.32573296]
[1750555168281,4.04244283,2286.4,2286.0,0.32573296]
[1750555168491,7.662,2286.3,2286.0,4.70007153]
[1750555168683,7.662,2286.3,2286.1,4.37424769]
[1750555168890,7.662,2286.3,2286.0,0.32573296]
[1750555169061,7.662,2286.3,2286.1,4.37412535]
[1750555169264,10.0,2286.6,2286.1,0.0217831]
[1750555169567,2.161,2286.5,2286.4,4.37366253]
[1750555170353,10.0,2286.9,2286.4,4.37366253]
[1750555170354,30.0,2286.9,2286.4,1.23202011]
[1750555170561,9.87766351,2286.8,2286.4,4.37354058]
[1750555170766,9.823,2286.8,2286.5,4.37346378]
[1750555170968,9.823,2286.8,2286.3,0.8046]
[1750555171161,9.823,2286.8,2286.7,4.37311409]
[1750555171360,9.823,2286.8,2286.6,4.37326186]
[1750555171566,9.823,2286.8,2286.7,4.37311409]
[1750555171763,9.823,2286.8,2286.6,4.37324321]
[1750555171955,12.6096,2286.8,2286.3,0.8046]
[1750555172159,0.05466565,2286.7,2286.4,4.37368628]
[1750555172798,0.05466565,2286.7,2286.2,3.35493858]
[1750555173025,10.0,2286.3,2286.2,3.35493858]
[1750555173167,10.0,2286.3,2284.9,0.2256887]
[1750555173168,0.7539,2286.2,2285.3,5.18032348]
[1750555173363,4.16385347,2286.2,2285.4,0.02179908]
[1750555173556,0.7539,2286.2,2285.9,4.37458549]
[1750555173959,0.7539,2286.2,2286.1,4.37426184]
[1750555174201,9.822,2286.2,2286.0,4.7001221]
[1750555174383,9.822,2286.2,2286.0,0.32573296]
[1750555174384,2.161,2286.2,2286.0,0.32573296]
[1750555174589,0.7539,2286.4,2286.0,0.32573296]
[1750555174786,0.7961,2286.7,2286.3,4.37370037]
[1750555174989,9.822,2286.6,2286.3,4.37370037]
[1750555175191,9.822,2286.6,2286.2,4.37400186]
[1750555175571,9.822,2286.6,2286.0,0.32573296]
[1750555175772,2.162,2286.7,2286.6,4.37330534]
[1750555176174,11.3021,2287.6,2287.2,4.3720242]
[1750555176384,10.95321,2287.5,2287.3,4.37193973]
[1750555176587,10.506,2287.6,2287.0,4.3724744]
[1750555176904,2.162,2287.5,2287.4,4.37177581]
[1750555177288,2.162,2287.5,2287.4,5.13127581]
[1750555177694,2.162,2287.5,2287.4,0.7595]
[1750555177870,2.162,2287.5,2287.4,5.13127581]
[1750555178364,2.162,2287.5,2287.1,0.7595]
[1750555178590,2.162,2287.5,2287.3,4.37188421]
[1750555178816,7.659,2287.4,2286.9,0.7595]
[1750555179105,7.659,2287.4,2287.1,4.37229708]
[1750555179306,0.05464732,2287.3,2286.6,0.7911]
[1750555179513,7.713649,2287.4,2287.0,4.37251336]
[1750555179674,1.18539,2287.3,2286.9,4.37267231]
[1750555180003,0.05465115,2287.2,2286.7,4.37304517]
[1750555180208,7.659,2287.1,2286.7,4.37304517]
[1750555180419,2.161,2287.0,2286.8,4.3729155]
[1750555180639,2.161,2287.0,2286.8,4.3727365]
[1750555181213,2.161,2287.0,2286.7,4.37304672]
[1750555181939,40.0,2286.7,2286.0,0.32573296]
[1750555182210,30.0,2286.5,2286.1,4.3742028]
[1750555182414,2.21567559,2286.4,2286.1,4.3742028]
[1750555182566,7.658,2286.3,2286.1,4.3742028]
[1750555182771,10.505,2286.5,2286.1,4.37426184]
[1750555182973,2.157,2286.2,2286.1,5.20153363]
[1750555183218,2.157,2286.2,2286.1,7.72920042]
[1750555184070,2.157,2286.2,2286.0,4.70018572]
[1750555184071,0.82157317,2286.3,2286.0,0.32573296]
[1750555184270,2.157,2286.2,2286.1,4.37409977]
[1750555185411,2.157,2286.2,2286.0,0.32573296]
[1750555185766,3.21519,2286.2,2286.0,0.32573296]
[1750555185971,0.8850745,2286.1,2286.0,0.32573296]
[1750555186985,0.8304,2286.1,2286.0,0.32573296]
[1750555187311,0.05468217,2286.2,2286.0,0.32573296]
[1750555187473,9.815,2286.1,2286.0,0.32573296]
[1750555188625,10.7965,2286.1,2286.0,0.32573296]
[1750555188980,9.815,2286.1,2286.0,4.70018615]
[1750555189181,9.815,2286.1,2286.0,0.32573296]
[1750555189590,9.815,2286.1,2286.0,4.70018615]
[1750555190229,9.815,2286.1,2286.0,0.32573296]
[1750555193301,10.8304,2286.4,2286.0,3.68067154]
[1750555193498,19.817,2286.3,2286.2,4.37393842]
[1750555193826,19.818,2286.3,2286.2,4.37393842]
[1750555194131,9.818,2286.3,2286.2,4.37393842]
[1750555194629,10.8304,2286.4,2286.1,4.37414926]
[1750555194797,12.96394,2286.4,2286.1,4.37414926]
[1750555195003,9.87167313,2286.3,2286.0,3.68067154]
[1750555195326,9.817,2286.3,2286.0,3.68067154]
[1750555195528,0.05467864,2286.2,2286.0,3.68067154]
[1750555196235,9.817,2286.3,2286.1,4.37414613]
[1750555197110,9.817,2286.3,2286.0,3.68067154]
[1750555198044,9.817,2286.3,2286.0,8.05512046]
[1750555198272,30.7661,2286.1,2286.0,3.68067154]
[1750555198561,8.4251,2286.1,2286.0,3.68067154]
[1750555198711,9.48341,2286.1,2286.0,3.68067154]
[1750555199441,19.48341,2286.1,2286.0,0.32573296]
[1750555199672,49.48341,2286.1,2286.0,0.32573296]
[1750555199937,8.4251,2286.1,2286.0,0.32573296]
[1750555200454,9.817,2286.1,2286.0,4.70018615]
[1750555200957,30.0,2286.3,2286.0,4.70017107]
[1750555201137,9.817,2286.1,2286.0,0.32573296]